bitfinex/quotes_SOLUSD_20250529
["timestamp","ask_amount","ask_price","bid_price","bid_amount"]
[1748528331065,0.14216157,169.35,169.32,17.39217145]
[1748528331559,0.14216157,169.35,169.28,8.33333333]
[1748528331722,0.14216157,169.35,169.32,17.39217145]
[1748528331944,0.14216157,169.33,169.28,8.33333333]
[1748528332142,0.14216157,169.33,169.29,17.39217145]
[1748528332449,0.14216157,169.33,169.28,8.33333333]
[1748528332657,17.67649459,169.34,169.29,17.39217145]
[1748528332963,0.14216157,169.34,169.29,17.39217145]
[1748528333161,17.53433302,169.34,169.29,17.39217145]
[1748528333549,23.43963063,169.34,169.28,8.33333333]
[1748528333742,0.14216157,169.32,169.28,25.72550478]
[1748528334157,0.14216157,169.32,169.28,8.33333333]
[1748528334466,0.14216157,169.32,169.29,17.39217145]
[1748528334665,17.67649459,169.34,169.29,17.39217145]
[1748528334870,0.14216157,169.34,169.31,17.39217145]
[1748528335668,0.14216157,169.32,169.31,17.39217145]
[1748528336343,0.14216157,169.34,169.31,23.93437145]
[1748528336650,11.86,169.35,169.31,23.93437145]
[1748528336651,0.14216157,169.35,169.33,17.39217145]
[1748528336850,0.14216157,169.35,169.34,17.39217145]
[1748528337253,0.14216157,169.36,169.34,17.39217145]
[1748528337572,0.14216157,169.36,169.35,17.39217145]
[1748528337756,0.14216157,169.37,169.35,17.39217145]
[1748528337950,0.14216157,169.37,169.36,17.39217145]
[1748528338947,0.14216157,169.42,169.36,17.39217145]
[1748528339149,11.86,169.43,169.39,17.39217145]
[1748528339455,40.44216157,169.42,169.4,17.39217145]
[1748528339966,40.44216157,169.42,169.39,17.39217145]
[1748528340170,40.44216157,169.42,169.33,1.6299]
[1748528340477,17.39217145,169.41,169.33,1.6299]
[1748528340667,0.14216157,169.4,169.36,17.39217145]
[1748528340972,26.14216157,169.36,169.28,8.33333333]
[1748528341180,0.14216157,169.31,169.28,8.33333333]
[1748528341364,6.04859179,169.31,169.28,8.33333333]
[1748528341559,0.28432314,169.31,169.28,8.33333333]
[1748528342377,0.14216157,169.31,169.28,8.33333333]
[1748528342575,0.14216157,169.29,169.28,8.33333333]
[1748528344768,6.19134659,169.29,169.28,8.33333333]
[1748528344980,0.28432314,169.29,169.28,8.33333333]
[1748528345281,0.14216157,169.29,169.28,36.24531594]
[1748528345486,0.14216157,169.29,169.28,8.33333333]
[1748528345701,26.14216157,169.29,169.28,8.33333333]
[1748528345863,96.53630575,169.29,169.28,8.33333333]
[1748528346190,42.48216157,169.29,169.28,8.33333333]
[1748528346356,42.48216157,169.29,169.28,36.24531594]
[1748528346551,0.14216157,169.29,169.28,36.24531594]
[1748528346771,0.14216157,169.29,169.28,8.33333333]
[1748528346977,12.5,169.35,169.28,8.33333333]
[1748528346978,0.14216157,169.34,169.28,8.33333333]
[1748528347289,0.14216157,169.32,169.28,8.33333333]
[1748528347592,26.14216157,169.29,169.28,8.33333333]
[1748528347763,0.14216157,169.29,169.28,8.33333333]
[1748528347964,43.12216157,169.29,169.28,8.33333333]
[1748528348482,43.12216157,169.29,169.28,36.24531594]
[1748528348789,43.26432314,169.29,169.28,8.33333333]
[1748528349078,43.10216157,169.29,169.28,36.24531594]
[1748528349667,0.14216157,169.29,169.28,36.24531594]
[1748528349871,0.14216157,169.29,169.28,8.33333333]
[1748528350077,0.14216157,169.29,169.28,36.24531594]
[1748528350605,0.14216157,169.29,169.28,8.33333333]
[1748528351489,6.19134659,169.29,169.28,8.33333333]
[1748528351665,6.33350816,169.29,169.28,8.33333333]
[1748528352787,6.04918502,169.29,169.28,8.33333333]
[1748528353091,0.14216157,169.29,169.28,36.24531594]
[1748528353281,0.14216157,169.29,169.28,8.33333333]
[1748528354965,0.14216157,169.29,169.28,27.91198261]
[1748528354966,4.05288172,169.29,169.28,27.91198261]
[1748528355163,0.14216157,169.31,169.27,27.91198261]
[1748528355358,70.81198261,169.32,169.28,27.91198261]
[1748528355359,48.80611347,169.32,169.28,27.91198261]
[1748528355591,0.14216157,169.31,169.28,27.91198261]
[1748528355886,6.04857507,169.31,169.28,27.91198261]
[1748528356060,6.04857507,169.31,169.22,0.83873334]
[1748528356258,6.04857507,169.31,169.28,27.91198261]
[1748528356683,0.14216157,169.31,169.28,27.91198261]
[1748528357071,6.04862345,169.31,169.22,0.83873334]
[1748528357272,33.96060606,169.31,169.26,27.91198261]
[1748528357792,0.14216157,169.3,169.26,27.91198261]
[1748528358892,6.04862345,169.31,169.27,27.91198261]
[1748528359193,6.04862345,169.31,169.22,0.83873334]
[1748528359396,6.04862345,169.31,169.27,27.91198261]
[1748528359693,0.14216157,169.3,169.25,27.91198261]
[1748528360074,0.14216157,169.29,169.25,27.91198261]
[1748528360268,0.14216157,169.29,169.22,0.83873334]
[1748528360468,0.14216157,169.29,169.25,27.91198261]
[1748528360676,0.14216157,169.29,169.24,27.91198261]
[1748528361300,0.14216157,169.29,169.22,0.83873334]
[1748528361301,0.14216157,169.28,169.22,0.83873334]
[1748528361471,0.14216157,169.28,169.24,27.91198261]
[1748528361675,0.14216157,169.26,169.24,27.91198261]
[1748528361872,42.76216157,169.26,169.24,27.91198261]
[1748528362780,42.76216157,169.26,169.25,27.91198261]
[1748528362971,0.14216157,169.26,169.22,0.83873334]
[1748528363172,0.14216157,169.26,169.24,27.91198261]
[1748528363397,0.14216157,169.26,169.22,0.83873334]
[1748528363593,0.14216157,169.26,169.23,27.91198261]
[1748528363793,6.05028635,169.26,169.23,27.91198261]
[1748528363996,6.05028635,169.26,169.23,17.45422261]
[1748528366170,0.14216157,169.26,169.23,17.45422261]
[1748528366419,6.05024649,169.26,169.23,17.45422261]
[1748528366978,0.14216157,169.26,169.23,17.45422261]
[1748528367199,0.14216157,169.25,169.24,17.45422261]
[1748528368506,0.14216157,169.25,169.22,0.83873334]
[1748528368689,0.14216157,169.25,169.23,17.45422261]
[1748528368888,0.14216157,169.25,169.22,0.83873334]
[1748528369091,0.14216157,169.25,169.23,17.45422261]
[1748528369608,0.14216157,169.25,169.22,0.83873334]
[1748528369609,0.14216157,169.25,169.24,17.45422261]
[1748528369814,0.14216157,169.25,169.22,0.83873334]
[1748528370015,0.14216157,169.25,169.23,17.45422261]
[1748528370312,0.14216157,169.25,169.22,0.83873334]
[1748528370614,0.14216157,169.25,169.22,18.29295595]
[1748528371203,0.14216157,169.25,169.23,17.45422261]
[1748528371610,0.14216157,169.25,169.24,17.45422261]
[1748528371914,0.14216157,169.27,169.24,17.45422261]
[1748528372100,0.14216157,169.29,169.26,17.45422261]
[1748528372299,0.14216157,169.29,169.28,17.45422261]
[1748528372797,0.14216157,169.3,169.28,17.45422261]
[1748528372994,0.14216157,169.31,169.23,10.0]
[1748528373195,0.14216157,169.31,169.3,17.45422261]
[1748528373621,0.14216157,169.31,169.23,10.0]
[1748528373798,0.14216157,169.34,169.3,17.45422261]
[1748528374006,0.14216157,169.34,169.23,15.90911599]
[1748528374007,42.08,169.33,169.31,17.45422261]
[1748528374394,42.22216157,169.33,169.32,17.45422261]
[1748528374612,0.14216157,169.33,169.32,17.45422261]
[1748528374918,42.20216157,169.33,169.32,17.45422261]
[1748528375215,0.14216157,169.32,169.22,13.87873334]
[1748528375604,0.14216157,169.32,169.28,17.45422261]
[1748528375803,0.14216157,169.3,169.28,17.45422261]
[1748528376303,0.14216157,169.31,169.29,17.45422261]
[1748528376820,0.14216157,169.31,169.22,13.87873334]
[1748528377120,0.14216157,169.31,169.28,17.45422261]
[1748528377898,0.14216157,169.3,169.28,17.45422261]
[1748528378314,0.14216157,169.3,169.22,13.87873334]
[1748528378315,0.14216157,169.3,169.29,17.45422261]
[1748528378618,0.14216157,169.31,169.29,17.45422261]
[1748528379420,0.14216157,169.31,169.27,17.45422261]
[1748528379730,0.14216157,169.31,169.29,17.45422261]
[1748528380018,0.14216157,169.3,169.29,17.45422261]
[1748528380196,0.14216157,169.3,169.28,17.45422261]
[1748528380665,0.14216157,169.3,169.27,17.45422261]
[1748528381426,0.14216157,169.3,169.28,17.45422261]
[1748528381717,0.14216157,169.3,169.22,13.87873334]
[1748528381915,5.90702345,169.29,169.27,17.45422261]
[1748528382094,0.14216157,169.28,169.27,17.45422261]
[1748528382514,0.14216157,169.29,169.27,17.45422261]
[1748528382722,0.14216157,169.29,169.28,17.45422261]
[1748528383339,0.14216157,169.29,169.22,13.87873334]
[1748528383499,26.0,169.28,169.27,17.45422261]
[1748528384333,0.14216157,169.29,169.27,17.45422261]
[1748528384513,0.14216157,169.29,169.28,17.45422261]
[1748528384906,0.14216157,169.29,169.22,13.87873334]
[1748528385125,0.14216157,169.29,169.28,17.45422261]
[1748528386201,5.90702345,169.29,169.28,17.45422261]
[1748528386395,0.14216157,169.29,169.28,17.45422261]
[1748528387027,6.04918502,169.29,169.28,17.45422261]
[1748528387211,0.14216157,169.29,169.28,17.45422261]
[1748528387621,5.90423333,169.37,169.29,8.1576]
[1748528387925,0.14216157,169.36,169.35,17.45422261]
[1748528388172,6.04674352,169.36,169.34,17.45422261]
[1748528388834,0.14216157,169.36,169.34,17.45422261]
[1748528389197,47.66674352,169.36,169.3,17.45422261]
[1748528389400,47.66674352,169.36,169.32,17.45422261]
[1748528389634,41.76216157,169.36,169.34,17.45422261]
[1748528390012,47.66677813,169.36,169.34,17.45422261]
[1748528390207,41.76216157,169.36,169.35,17.45422261]
[1748528390404,0.14216157,169.36,169.35,17.45422261]
[1748528390604,41.74216157,169.37,169.35,17.45422261]
[1748528390932,0.14216157,169.37,169.36,17.45422261]
[1748528391306,0.14216157,169.37,169.35,17.45422261]
[1748528391628,0.14216157,169.37,169.34,17.45422261]
[1748528392039,0.14216157,169.37,169.35,17.45422261]
[1748528392625,41.70216157,169.37,169.35,17.45422261]
[1748528393135,47.60641494,169.37,169.34,17.45422261]
[1748528393515,41.70216157,169.37,169.34,17.45422261]
[1748528393733,47.60649167,169.37,169.34,17.45422261]
[1748528393939,41.70216157,169.37,169.34,17.45422261]
[1748528394434,0.14216157,169.37,169.36,17.45422261]
[1748528394639,0.14216157,169.39,169.36,17.45422261]
[1748528394950,41.64216157,169.39,169.38,17.45422261]
[1748528395242,0.14216157,169.39,169.38,17.45422261]
[1748528396036,0.14216157,169.39,169.29,21.1976]
[1748528396337,41.42,169.39,169.37,17.45422261]
[1748528396734,0.14216157,169.38,169.3,17.45422261]
[1748528396926,0.14216157,169.38,169.36,17.45422261]
[1748528397127,0.14216157,169.38,169.37,17.45422261]
[1748528397322,0.14216157,169.38,169.3,17.45422261]
[1748528397655,0.14216157,169.38,169.37,17.45422261]
[1748528397814,49.42819461,169.44,169.37,17.45422261]
[1748528397815,13.04,169.44,169.37,17.45422261]
[1748528398010,0.14216157,169.43,169.4,17.45422261]
[1748528398222,0.14216157,169.41,169.4,17.45422261]
[1748528398515,0.14216157,169.41,169.39,17.45422261]
[1748528398940,0.14216157,169.41,169.36,7.9383]
[1748528399115,0.14216157,169.41,169.36,17.45422261]
[1748528399312,0.14216157,169.39,169.32,7.6]
[1748528399521,0.14216157,169.39,169.35,17.45422261]
[1748528399727,17.59638418,169.39,169.32,7.6]
[1748528399925,17.59638418,169.39,169.34,17.45422261]
[1748528400341,0.14216157,169.35,169.27,7.7586]
[1748528400652,17.59638418,169.33,169.28,17.45422261]
[1748528401058,0.14216157,169.33,169.28,17.45422261]
[1748528401237,0.28432314,169.32,169.27,7.7586]
[1748528401436,0.14216157,169.33,169.27,7.7586]
[1748528401643,0.14216157,169.33,169.29,17.45422261]
[1748528401835,0.14216157,169.33,169.28,17.45422261]
[1748528402050,0.14216157,169.33,169.27,7.7586]
[1748528402350,6.04811993,169.33,169.28,17.45422261]
[1748528402552,26.14216157,169.3,169.23,8.139]
[1748528402935,26.14216157,169.3,169.25,17.45422261]
[1748528403245,26.14216157,169.3,169.23,8.139]
[1748528403451,43.59638418,169.3,169.23,8.139]
[1748528403639,0.14216157,169.28,169.19,20.7994]
[1748528403827,0.14216157,169.26,169.25,17.45422261]
[1748528404023,0.14216157,169.26,169.19,20.7994]
[1748528404248,0.14216157,169.26,169.25,17.45422261]
[1748528405129,0.14216157,169.26,169.19,20.7994]
[1748528405346,0.14216157,169.26,169.25,16.95422261]
[1748528406128,0.14216157,169.26,169.19,20.7994]
[1748528406430,0.14216157,169.26,169.25,17.45422261]
[1748528406629,0.14216157,169.26,169.19,20.7994]
[1748528406830,0.14216157,169.26,169.25,17.45422261]
[1748528407543,0.14216157,169.29,169.25,17.45422261]
[1748528407744,42.3,169.28,169.2,17.45422261]
[1748528407946,42.3,169.28,169.26,17.45422261]
[1748528408125,42.3,169.28,169.2,17.45422261]
[1748528408325,42.3,169.28,169.26,17.45422261]
[1748528409230,42.3,169.28,169.19,20.7994]
[1748528409449,42.3,169.28,169.26,17.45422261]
[1748528409761,42.36216157,169.28,169.27,17.45422261]
[1748528409933,42.36216157,169.28,169.19,20.7994]
[1748528410135,42.36216157,169.28,169.26,17.45422261]
[1748528410337,42.36216157,169.28,169.19,20.7994]
[1748528410338,0.14216157,169.27,169.19,20.7994]
[1748528410537,6.04990446,169.27,169.19,20.7994]
[1748528410939,6.04990446,169.27,169.23,17.45422261]
[1748528411628,6.04990446,169.27,169.22,17.45422261]
[1748528411855,6.04990446,169.27,169.23,17.45422261]
[1748528412263,0.14216157,169.27,169.25,17.45422261]
[1748528412462,6.05008371,169.27,169.19,8.2194]
[1748528412643,6.05008371,169.27,169.23,17.45422261]
[1748528412835,6.05008371,169.27,169.19,8.2194]
[1748528413036,19.07613357,169.28,169.18,7.80506185]
[1748528413243,0.14216157,169.26,169.22,17.45422261]
[1748528413561,0.14216157,169.26,169.18,7.80506185]
[1748528413729,26.14216157,169.26,169.18,7.80506185]
[1748528413933,26.14216157,169.26,169.22,17.45422261]
[1748528414128,0.28432314,169.25,169.18,7.80506185]
[1748528414365,0.28432314,169.25,169.17,8.189]
[1748528414366,0.14216157,169.22,169.17,8.189]
[1748528414569,0.14216157,169.22,169.2,17.45422261]
[1748528414752,42.36216157,169.21,169.2,17.45422261]
[1748528415150,42.36216157,169.21,169.14,1.5034]
[1748528415345,42.36216157,169.21,169.2,17.45422261]
[1748528415664,0.14216157,169.2,169.14,1.5034]
[1748528416935,0.14216157,169.2,169.19,17.45422261]
[1748528417149,42.22,169.21,169.19,17.45422261]
[1748528417358,42.22,169.21,169.14,1.5034]
[1748528417359,42.36216157,169.21,169.2,17.45422261]
[1748528418066,0.14216157,169.2,169.14,1.5034]
[1748528418267,0.14216157,169.2,169.19,17.45422261]
[1748528418839,0.14216157,169.2,169.14,1.5034]
[1748528419066,0.14216157,169.2,169.18,17.45422261]
[1748528419269,0.14216157,169.2,169.14,1.5034]
[1748528419594,0.14216157,169.2,169.18,17.45422261]
[1748528419948,0.14216157,169.2,169.19,17.45422261]
[1748528420652,0.14216157,169.2,169.14,1.5034]
[1748528420855,0.14216157,169.2,169.18,17.45422261]
[1748528421574,0.14216157,169.2,169.14,1.5034]
[1748528421738,0.14216157,169.2,169.18,17.45422261]
[1748528421937,0.14216157,169.2,169.17,17.45422261]
[1748528422476,0.14216157,169.2,169.14,1.5034]
[1748528422477,6.05238192,169.2,169.18,17.45422261]
[1748528423050,6.05238192,169.2,169.17,17.45422261]
[1748528423252,6.05238192,169.2,169.13,12.15044526]
[1748528423253,0.14216157,169.16,169.13,5.64414526]
[1748528423468,42.18,169.15,169.13,23.09836787]
[1748528423777,0.14216157,169.14,169.13,5.64414526]
[1748528423973,0.14216157,169.14,169.13,23.09836787]
[1748528424284,26.0,169.15,169.0,36.17052261]
[1748528424585,0.14216157,169.13,169.08,6.1612]
[1748528424785,0.14216157,169.13,169.1,17.45422261]
[1748528425154,0.14216157,169.13,169.08,6.1612]
[1748528425155,6.05482133,169.13,169.08,6.1612]
[1748528425356,6.05482133,169.13,169.09,17.45422261]
[1748528425660,6.05482133,169.13,169.03,6.6233]
[1748528426049,0.14216157,169.13,169.1,17.45422261]
[1748528426249,0.14216157,169.13,169.03,6.6233]
[1748528426666,0.14216157,169.13,169.1,17.45422261]
[1748528426980,6.05489305,169.13,169.1,17.45422261]
[1748528427158,6.05489305,169.13,169.03,6.6233]
[1748528427358,6.05489305,169.13,169.09,17.45422261]
[1748528427561,0.14216157,169.13,169.11,17.45422261]
[1748528428064,0.14216157,169.13,169.03,6.6233]
[1748528428273,0.14216157,169.13,169.11,17.45422261]
[1748528429291,42.14,169.14,169.12,17.45422261]
[1748528429292,42.18216157,169.14,169.12,17.45422261]
[1748528429458,0.5,169.12,169.03,6.6233]
[1748528430175,0.5,169.12,169.09,17.45422261]
[1748528430366,0.5,169.12,169.11,17.45422261]
[1748528430569,48.09208577,169.21,169.11,23.85172261]
[1748528430759,42.16216157,169.21,169.11,6.3975]
[1748528430960,48.07199474,169.21,169.11,6.3975]
[1748528431162,48.07199474,169.21,169.19,17.45422261]
[1748528431860,42.16216157,169.21,169.18,17.45422261]
[1748528432051,42.14216157,169.21,169.18,17.45422261]
[1748528432253,0.14216157,169.21,169.11,6.3975]
[1748528432465,42.12216157,169.21,169.18,17.45422261]
[1748528432677,48.03198172,169.21,169.18,17.45422261]
[1748528433059,42.12216157,169.21,169.18,17.45422261]
[1748528433260,42.12216157,169.21,169.11,6.3975]
[1748528433686,48.03199492,169.21,169.18,17.45422261]
[1748528433873,48.03199492,169.21,169.16,17.45422261]
[1748528434183,0.14216157,169.19,169.09,6.0499]
[1748528434384,0.14216157,169.19,169.14,17.45422261]
[1748528434589,0.14216157,169.19,169.09,6.0499]
[1748528434765,0.14216157,169.17,169.14,17.45422261]
[1748528434957,0.14216157,169.17,169.15,17.45422261]
[1748528435158,0.14216157,169.17,169.09,6.0499]
[1748528435358,0.14216157,169.18,169.09,6.0499]
[1748528435803,0.14216157,169.18,169.16,17.45422261]
[1748528436297,0.14216157,169.18,169.09,6.0499]
[1748528436477,0.14216157,169.18,169.15,17.45422261]
[1748528437093,0.14216157,169.17,169.1,17.45422261]
[1748528437303,0.14216157,169.17,169.16,17.45422261]
[1748528437509,0.14216157,169.18,169.16,17.45422261]
[1748528438225,5.9102178,169.2,169.11,1.5472]
[1748528438509,0.14216157,169.19,169.11,1.5472]
[1748528438717,0.14216157,169.19,169.17,17.45422261]
[1748528439010,6.05277646,169.19,169.11,1.5472]
[1748528439173,90.98956363,169.22,169.18,17.45422261]
[1748528439378,0.14216157,169.21,169.19,17.45422261]
[1748528439909,0.14216157,169.22,169.19,17.45422261]
[1748528440225,0.14216157,169.22,169.11,1.5472]
[1748528440379,41.9,169.23,169.11,1.5472]
[1748528440380,0.14216157,169.23,169.11,1.5472]
[1748528440746,0.14216157,169.23,169.2,17.45422261]
[1748528440917,0.14216157,169.23,169.11,7.46043868]
[1748528441395,0.14216157,169.23,169.11,1.5472]
[1748528441710,0.14216157,169.23,169.2,17.45422261]
[1748528442071,6.05128817,169.23,169.2,17.45422261]
[1748528444181,0.14216157,169.23,169.21,17.45422261]
[1748528444609,0.14216157,169.23,169.12,6.6302]
[1748528444810,0.14216157,169.23,169.21,17.45422261]
[1748528445009,6.05130995,169.23,169.2,17.45422261]
[1748528445890,6.05130995,169.23,169.12,6.6302]
[1748528445891,49.50553256,169.23,169.12,6.6302]
[1748528446098,32.05130995,169.23,169.18,17.45422261]
[1748528446300,32.05130995,169.23,169.19,17.45422261]
[1748528446507,32.05130995,169.23,169.2,17.45422261]
[1748528447010,32.05130995,169.23,169.21,17.45422261]
[1748528447011,0.14216157,169.23,169.21,17.45422261]
[1748528447613,0.14216157,169.23,169.12,19.5102]
[1748528447805,13.12,169.24,169.22,17.45422261]
[1748528447995,0.14216157,169.27,169.23,17.45422261]
[1748528448325,0.14216157,169.27,169.24,17.45422261]
[1748528448832,14.77596141,169.27,169.15,6.0934]
[1748528448991,0.14216157,169.23,169.18,17.45422261]
[1748528449198,0.14216157,169.23,169.15,6.0934]
[1748528449441,0.14216157,169.23,169.18,17.45422261]
[1748528449628,0.14216157,169.23,169.15,6.0934]
[1748528450138,5.90946696,169.22,169.17,17.45422261]
[1748528450309,5.90946696,169.22,169.15,6.0934]
[1748528450626,5.90946696,169.22,169.18,17.45422261]
[1748528450829,0.14216157,169.23,169.15,6.0934]
[1748528451137,6.05139979,169.23,169.18,17.45422261]
[1748528451934,6.05139979,169.23,169.15,6.0934]
[1748528452611,6.05139979,169.23,169.18,17.45422261]
[1748528453424,23.5056224,169.23,169.17,17.45422261]
[1748528453630,6.05139979,169.23,169.17,17.45422261]
[1748528453805,6.05139979,169.23,169.18,17.45422261]
[1748528454009,6.05139979,169.23,169.15,6.0934]
[1748528454210,23.5056224,169.23,169.15,6.0934]
[1748528454429,23.5056224,169.23,169.17,17.45422261]
[1748528454798,6.05139979,169.23,169.17,17.45422261]
[1748528455227,6.05139979,169.23,169.18,17.45422261]
[1748528455429,6.05139979,169.23,169.15,6.0934]
[1748528455619,6.05139979,169.23,169.18,17.45422261]
[1748528455903,0.14216157,169.23,169.2,17.45422261]
[1748528456106,6.05141098,169.23,169.19,17.45422261]
[1748528456435,6.05141098,169.23,169.15,6.0934]
[1748528456436,23.50563359,169.23,169.15,6.0934]
[1748528456607,23.50563359,169.23,169.17,17.45422261]
[1748528457238,49.50563359,169.23,169.17,17.45422261]
[1748528457738,32.05141098,169.23,169.17,17.45422261]
[1748528458041,49.50563359,169.23,169.17,17.45422261]
[1748528458539,49.50563359,169.23,169.15,6.0934]
[1748528458708,49.50563359,169.23,169.17,17.45422261]
[1748528458903,32.05141098,169.23,169.17,17.45422261]
[1748528459113,32.05141098,169.23,169.18,17.45422261]
[1748528459314,49.50563359,169.23,169.15,6.0934]
[1748528459518,49.50563359,169.23,169.17,17.45422261]
[1748528460130,0.14216157,169.21,169.15,6.0934]
[1748528460338,0.14216157,169.21,169.16,17.45422261]
[1748528460547,0.14216157,169.21,169.13,1.5652]
[1748528460845,0.28432314,169.22,169.13,1.5652]
[1748528460846,0.14216157,169.19,169.13,1.5652]
[1748528461004,6.05294998,169.19,169.14,17.45422261]
[1748528461199,6.05294998,169.19,169.11,6.4457]
[1748528461422,0.14216157,169.17,169.11,6.4457]
[1748528461635,0.14216157,169.17,169.14,17.45422261]
[1748528461809,5.90986064,169.21,169.16,17.45422261]
[1748528462008,0.14216157,169.2,169.17,17.45422261]
[1748528462209,0.14216157,169.2,169.11,6.4457]
[1748528462514,5.90986102,169.21,169.11,6.4457]
[1748528462515,0.14216157,169.21,169.11,6.4457]
[1748528462835,17.59638418,169.21,169.15,17.45422261]
[1748528463029,0.14216157,169.2,169.15,17.45422261]
[1748528463271,0.14216157,169.2,169.11,6.4457]
[1748528463419,0.14216157,169.2,169.15,17.45422261]
[1748528464110,23.36411766,169.21,169.16,17.45422261]
[1748528464111,0.14216157,169.21,169.16,17.45422261]
[1748528464318,0.14216157,169.21,169.2,17.45422261]
[1748528464513,0.14216157,169.24,169.2,17.45422261]
[1748528464712,0.14216157,169.24,169.18,6.5874]
[1748528464713,0.14216157,169.24,169.23,17.45422261]
[1748528465028,8.86815528,169.25,169.23,17.45422261]
[1748528465219,9.01031685,169.25,169.24,17.45422261]
[1748528465422,8.86815528,169.25,169.24,17.45422261]
[1748528465603,9.01031685,169.25,169.24,17.45422261]
[1748528465802,8.86815528,169.27,169.24,17.45422261]
[1748528465999,8.86815528,169.27,169.2,23.36428979]
[1748528466249,8.86815528,169.27,169.26,17.45422261]
[1748528466407,8.86815528,169.27,169.25,1.6362]
[1748528466606,9.01031685,169.27,169.26,17.45422261]
[1748528466936,0.14216157,169.26,169.25,1.6362]
[1748528467310,0.14216157,169.26,169.25,19.09042261]
[1748528467721,0.14216157,169.26,169.21,1.5621]
[1748528467915,0.14216157,169.26,169.24,17.45422261]
[1748528468130,0.14216157,169.26,169.25,17.45422261]
[1748528468323,8.86815528,169.27,169.25,17.45422261]
[1748528468528,9.01031685,169.27,169.26,6.0773]
[1748528468819,9.01031685,169.27,169.21,7.6394]
[1748528469013,0.14216157,169.26,169.23,17.45422261]
[1748528469442,0.14216157,169.26,169.21,7.6394]
[1748528469741,0.14216157,169.26,169.23,17.45422261]
[1748528470053,0.14216157,169.26,169.25,17.45422261]
[1748528470219,0.14216157,169.26,169.21,7.6394]
[1748528470419,0.14216157,169.26,169.22,17.45422261]
[1748528471420,0.28432314,169.27,169.23,17.45422261]
[1748528472219,0.14216157,169.28,169.24,17.45422261]
[1748528472423,0.14216157,169.31,169.27,17.45422261]
[1748528472757,0.14216157,169.31,169.3,17.45422261]
[1748528472958,6.04673576,169.37,169.3,17.45422261]
[1748528473131,0.14216157,169.36,169.31,17.45422261]
[1748528473535,17.45422261,169.35,169.22,14.18]
[1748528473739,17.59638418,169.35,169.3,17.45422261]
[1748528474051,17.59638418,169.35,169.22,32.82964886]
[1748528474052,0.14216157,169.35,169.31,17.45422261]
[1748528474257,0.14216157,169.35,169.3,17.45422261]
[1748528474638,0.28432314,169.35,169.3,17.45422261]
[1748528474849,0.28432314,169.35,169.22,32.82964886]
[1748528474850,0.14216157,169.34,169.22,14.18]
[1748528475033,0.14216157,169.33,169.22,14.18]
[1748528475337,6.04791796,169.33,169.27,17.45422261]
[1748528475529,6.04791796,169.33,169.28,17.45422261]
[1748528475730,6.04791796,169.33,169.22,14.18]
[1748528475953,0.28432314,169.32,169.21,7.6394]
[1748528476148,0.14216157,169.31,169.26,17.45422261]
[1748528476349,0.14216157,169.3,169.21,7.6394]
[1748528476544,0.14216157,169.3,169.26,17.45422261]
[1748528476743,31.90575639,169.33,169.28,17.45422261]
[1748528476952,0.14216157,169.32,169.28,17.45422261]
[1748528477188,0.42648471,169.32,169.21,7.6394]
[1748528477469,17.59638418,169.28,169.21,7.6394]
[1748528477667,0.14216157,169.28,169.23,17.45422261]
[1748528478039,0.14216157,169.26,169.22,17.45422261]
[1748528478285,0.14216157,169.26,169.21,7.6394]
[1748528478458,0.14216157,169.26,169.21,17.45422261]
[1748528478769,17.88070732,169.27,169.22,17.45422261]
[1748528479059,0.42648471,169.25,169.21,17.45422261]
[1748528479359,6.33498281,169.25,169.21,17.45422261]
[1748528479663,6.33498281,169.25,169.19,17.45422261]
[1748528479664,23.78920542,169.25,169.19,17.45422261]
[1748528479862,6.33498281,169.25,169.2,17.45422261]
[1748528480060,6.33498281,169.25,169.21,27.92935776]
[1748528480364,6.33498281,169.25,169.2,27.92935776]
[1748528480539,34.26434057,169.25,169.19,27.92935776]
[1748528480741,6.33498281,169.25,169.2,27.92935776]
[1748528481242,0.14216157,169.21,169.13,20.5099]
[1748528481446,0.14216157,169.21,169.18,27.92935776]
[1748528482029,0.42648471,169.24,169.2,27.92935776]
[1748528482234,34.26467765,169.24,169.13,20.5099]
[1748528482433,0.42648471,169.22,169.17,27.92935776]
[1748528483039,0.14216157,169.21,169.13,20.5099]
[1748528483260,0.14216157,169.21,169.17,27.92935776]
[1748528483467,0.14216157,169.21,169.13,20.5099]
[1748528483768,0.14216157,169.2,169.13,20.5099]
[1748528483967,0.14216157,169.2,169.16,27.92935776]
[1748528484151,0.14216157,169.2,169.17,27.92935776]
[1748528484353,0.14216157,169.21,169.13,20.5099]
[1748528484750,0.14216157,169.21,169.18,27.92935776]
[1748528484955,0.14216157,169.21,169.13,20.5099]
[1748528485468,6.05207326,169.21,169.17,27.92935776]
[1748528485638,0.14216157,169.21,169.17,27.92935776]
[1748528485836,6.05198569,169.21,169.13,20.5099]
[1748528486250,6.05198569,169.21,169.17,27.92935776]
[1748528486571,0.42648471,169.22,169.19,27.92935776]
[1748528486735,0.14216157,169.22,169.21,27.92935776]